{"text_format":"1","workbook":"xlsx","n_sheets":4,"sheets":["Rekenblad","Gemeenten met categorie","INFO","Tabel Tarieven"],"not_rendered":{"charts":0,"images":1,"macros":1,"external_links":1,"defined_names":10,"comments":0,"pivot_tables":0},"unopened":[],"bounds":{"document_bytes":16777216,"sheet_cells":100000,"rows_first":2000,"rows_last":500,"rows_between":2000,"halvings":0,"cell_chars":16384,"cell_head_chars":4096},"cells_cut":0,"cells_raw":0,"read":"whole","date_system":"1900"}

{"sheet":"Rekenblad","index":0,"n_rows":86,"n_cols":14,"rows_kept":86,"cut":false,"hidden":false,"merged":[[35,13,36,13],[32,0,32,1],[32,9,32,10],[28,5,28,7],[28,8,28,10],[29,9,29,10],[30,9,30,10],[31,9,31,10],[31,0,31,1],[33,2,34,13],[30,0,30,1],[29,0,29,1],[35,6,35,7],[35,4,35,5],[35,9,35,12],[0,0,0,8],[13,1,13,2],[13,5,13,6],[14,5,14,6],[12,5,12,6],[9,0,9,2],[1,0,1,8],[10,1,10,2],[11,1,11,2],[12,1,12,2],[11,3,11,4],[14,3,14,4],[5,5,5,9],[11,5,11,6],[2,1,2,3],[2,5,2,9],[18,5,18,6],[20,2,20,7],[18,3,18,4],[24,0,24,1],[19,0,19,4],[20,0,20,1],[22,0,22,1],[21,0,21,1],[23,0,23,1],[14,1,14,2],[17,0,17,1],[15,0,15,1],[15,5,15,6],[16,5,16,6],[17,5,17,6],[15,3,15,4],[16,3,17,4],[16,0,16,1],[26,0,26,1],[21,2,22,4],[25,0,25,1],[28,2,28,4],[23,9,23,10],[25,9,25,10],[26,9,26,10],[24,9,24,10],[27,9,27,10],[21,8,22,8],[21,9,22,10],[27,0,27,1],[21,5,22,7],[5,12,5,13],[20,11,20,13],[14,7,17,11],[18,12,18,13],[16,12,17,13],[20,8,20,10],[18,7,18,11],[0,12,0,13],[9,3,9,6],[13,3,13,4],[10,3,10,4],[10,5,10,6],[4,10,4,11],[10,7,13,11],[12,3,12,4],[4,1,4,9],[3,11,3,13],[2,10,2,11],[3,8,3,9],[3,1,3,6],[2,12,2,13],[4,12,4,13],[9,12,9,13]]}
[{"$f":"\"Melding en berekening straatwerk\" & MID('Tabel Tarieven'!K1,10,5)","v":"Melding en berekening straatwerk 2018"},null,null,null,null,null,null,null,null,null,null,null,{"$f":"\"Versie \"&MID('Tabel Tarieven'!K1,11,8)","v":"Versie 2018 v2 "}]
["volgens de Richtlijn Tarieven (graaf) werkzaamheden Telecom dd 12-03-2004.",null,null,null,null,null,null,null,null,null,null,"Datum:",{"$f":"NOW()","v":"2018-01-23T09:49:59.730"}]
["AANVRAGER:","……………………………….",null,null,"Adres:","……………………………………………………………………",null,null,null,null,"Contactpersoon:",null,"…………………………………"]
["NAAM PROJECT:","…………………………………………………………………………………………………..",null,null,null,null,null,"Ref.nr:","…………………………………………………………………………………………………..",null,"E-mail:","…………..…………………………………"]
["PLAATS:","…………………………………………………………………………………………………..",null,null,null,null,null,null,null,null,"Telefoon:",null,"…………………………………"]
["GEMEENTE:",null,null,null,"adres:",{"$f":"IF($B$7>0.1,VLOOKUP(B7,'Gemeenten met categorie'!A3:D484,4),\"\")","v":"  Postbus 93,  9460 AB  GIETEN"},null,null,null,null,null,"Mobiel:","…………………………………"]
[null,1,null,{"$f":"IF($B$7>0.1,VLOOKUP($B$7,'Gemeenten met categorie'!A2:D493,3),\"\")","v":1}]
["Uitvoering:"]
[1,null,null,null,null,null,null,null,null,null,null,null,"  "]
["Gemeentelijke gegevens:",null,null,"Verzamelde informatie:",null,null,null,"Toegepast tarief",null,null,null,null,"Bedrag:"]
["Kontaktpersoon gem.:","………………………",null,"Inkoopordernr.:",null,"Projektnr:",null,{"$f":"INDEX('Gemeenten met categorie'!D499:D504,A9,1)","v":"Tarief A:  Herstel en onderhoud uitgevoerd door de gemeente"},null,null,null,null,"Uitv.k",{"$f":"SUM(J38:J80)","v":0}]
["E-mail:","………………………",null,"………………",null,"…………….",null,null,null,null,null,null,"Onderh.k",{"$f":"SUM(K38:K80)","v":0}]
["telefoon:","………………………",null,"Datum opbreking:",null,"………………..",null,null,null,null,null,null,"Deg.kst.",{"$f":"SUM(L38:L80)","v":0}]
["mobiel:","………………………",null,"Datum herstel:",null,"………………..",null,null,null,null,null,null,"Beheer.k",{"$f":"SUM(M38:M80)","v":0}]
["Opdrachtnummer :","………………………",null,"Deellevering:",null,"………………..",null,{"$f":"INDEX('Gemeenten met categorie'!D499:F504,A9,2)","v":0},null,null,null,null,"Bomen/str",{"$f":"N28","v":0}]
["In te vullen gegevens:",null,null,"Laatste levering:",null,"………………..",null,null,null,null,null,null,"Asfalt",{"$f":"N33","v":0}]
["= Richtlijn tarief",null,null,"Uitvoerende aannemer:",null,"……………….."]
["= Af te spreken projektprijs",null,null,null,null,"…………………"]
[null,null,null,null,null,"…………………",null,"Totaal kosten:  ",null,null,null,null,{"$f":"+SUM(N11:N17)","v":0}]
["OMSCHRIJVING STRAATWERK / BERMEN;",null,null,null,null,null,null,null,null,null,null,null,null,{"$f":"IF(ROUND(SUM(N38:N80),2)-ROUND(M19,2)<>0,\"Fout in formulier\",\"\")","v":""}]
[{"$f":"+IF(AND(D25>0,D25<0.3),(\"invoer fout breedte tegels\"),IF(AND(D26>0,D26<0.3),(\"invoer fout breedte tegels\"),IF(AND(D27>0,D27<0.3),(\"invoer fout breedte tegels\"),\"\")))","v":""},null,"Sleuf",null,null,null,null,null,"Opsluiting",null,null,"Bomen en Struiken"]
[{"$f":"+IF(AND(G25>0,G25<0.25),(\"invoer fout breedte klinkers\"),IF(AND(G26>0,G26<0.25),(\"invoer fout breedte klinkers\"),IF(AND(G27>0,G27<0.25),(\"invoer fout breedte klinkers\"),\"\")))","v":""},null,"Tegels",null,null,"Klinkers",null,null,"trottoir-banden:","opsluit- / koprolband "]
[]
["adres",null,"lengte","breedte","m2","lengte","breedte","m2","m1","m1",null,"eenh.","prijs ","kosten"]
["………………………………….",null,null,null,{"$f":"IF($D$25>=0.3,($C$25*$D$25),\"\")","v":""},null,null,{"$f":"IF($G$25>=0.25,($F$25*$G$25),\"\")","v":""},null,null,null,null,null,{"$f":"IF($L25>0,$M25*($L25+0),\"\")","v":""}]
["………………………………….",null,null,null,{"$f":"IF($D$26>=0.3,($C$26*$D$26),\"\")","v":""},null,null,{"$f":"IF($G$26>=0.25,($F$26*$G$26),\"\")","v":""},null,null,null,null,null,{"$f":"IF($L26>0,$M26*($L26+0),\"\")","v":""}]
["………………………………….",null,null,null,{"$f":"IF($D$27>=0.3,($C$27*$D$27),\"\")","v":""},null,null,{"$f":"IF($G$27>=0.25,($F$27*$G$27),\"\")","v":""},null,null,null,null,null,{"$f":"IF($L27>0,$M27*($L27+0),\"\")","v":""}]
[null,null,{"$f":"SUM(C25:C27)","v":0},null,{"$f":"SUM(E25:E27)","v":0},{"$f":"SUM(F25:F27)","v":0},null,{"$f":"SUM(H25:H27)","v":0},{"$f":"SUM(I25:I27)","v":0},{"$f":"SUM(J25:K27)","v":0},null,{"$f":"SUM(L25:L27)","v":0},null,{"$f":"SUM(N25:N27)","v":0}]
[null,null,"Bermen, gazon herstel door gemeente",null,null,"Bermen, gazon herstel door aanbieder",null,null,"Asfalt, all in*",null,null,"Dikte","Prijs","Asfalt"]
["adres",null,"lengte","breedte","m2","lengte","breedte","m2","lengte (m)","breedte (m)",null,"cm","m2/cm","kosten"]
["…………………………………",null,null,null,{"$f":"IF(C31>0,C31*(D31+0),\"\")","v":""},null,null,{"$f":"IF(F31>0,F31*(G31+0),\"\")","v":""},null,null,null,null,null,{"$f":"IF($I31>0,($I$31*$J$31*$L$31)*($M$31),\"\")","v":""}]
["…………………………………",null,null,null,{"$f":"IF(C32>0,C32*(D32+0),\"\")","v":""},null,null,{"$f":"IF(F32>0,F32*(G32+0),\"\")","v":""},null,null,null,null,null,{"$f":"IF($I32>0,($I$32*$J$32*$L$32)*($M$32),\"\")","v":""}]
[null,null,null,null,{"$f":"SUM(E31:E32)","v":0},null,null,{"$f":"SUM(H30:H32)","v":0},{"$f":"SUM(I30:I32)","v":0},{"$f":"SUM(J30:K32)","v":0},null,null,null,{"$f":"SUM(N31:N32)","v":0}]
["Specificatie:",null,"* de gedefinieerde sleufbreedte dient te worden aangegeven, voor netbeheerders (niet zijnde aanbieders volgens Telecommunicatiewet) geldt de (gemiddelde) breedte van de opgebroken bestrating. In de tarieven is de gatvergroting meegerekend door een toeslag van 20%."]
["Tarief:",{"$f":"A9","v":1}]
["Categorie:",{"$f":"VLOOKUP(B7,'Gemeenten met categorie'!$A$3:$C$393,3,FALSE)","v":1},null,null,"Kosten per eenheid",null,"Degeneratiekosten",null,"Beheerk.","Subtotaal",null,null,null,"Totaal regel"]
["Omschrijving","Hoeveelheid","Eenheid","Sleuf m1","Uitv.kst","Onderh.k","Per rep.","Per m1","per eenheid","Uitv.k.","Onderh.k","Deg.kst.","Beheer.k"]
["klinkers <= 15 m2",{"$f":"IF($H$28<=15,$H$28,0)","v":0},"m2",null,{"$f":"IF($B$38>0,'Tabel Tarieven'!$R6,0)","v":0},{"$f":"IF($B38>0,'Tabel Tarieven'!$R21,0)","v":0},{"$f":"IF($B38>0,'Tabel Tarieven'!$R27,0)","v":0},null,{"$f":"IF($B38>0,'Tabel Tarieven'!$R33,0)","v":0},{"$f":"E38*B38","v":0},{"$f":"F38*B38","v":0},{"$f":"G38","v":0},{"$f":"I38*B38","v":0},{"$f":"+SUM(J38:M38)","v":0}]
["klinkers >15 m2",{"$f":"IF($H$28>15,IF($B$35=1,IF($H$28<=100,$H$28,0),$H$28),0)","v":0},"m2",{"$f":"IF(B39>0,$F$28,0)","v":0},{"$f":"IF(B39>0,'Tabel Tarieven'!$R7,0)","v":0},{"$f":"IF($B39>0,'Tabel Tarieven'!$R22,0)","v":0},null,{"$f":"IF($B39>0,'Tabel Tarieven'!$R28,0)","v":0},{"$f":"IF($B39>0,'Tabel Tarieven'!$R34,0)","v":0},{"$f":"E39*B39","v":0},{"$f":"F39*B39","v":0},{"$f":"H39*D39","v":0},{"$f":"I39*B39","v":0},{"$f":"+SUM(J39:M39)","v":0}]
["klinkers  >100 m2",{"$f":"IF($B$35=1,IF($H$28>100,$H$28,0),0)","v":0},"m2",{"$f":"IF(B40>0,$F$28,0)","v":0},{"$f":"IF(B40>0,'Tabel Tarieven'!$R8,0)","v":0},{"$f":"IF($B40>0,'Tabel Tarieven'!$R23,0)","v":0},null,{"$f":"IF($B40>0,'Tabel Tarieven'!$R29,0)","v":0},{"$f":"IF($B40>0,'Tabel Tarieven'!$R35,0)","v":0},0,0,{"$f":"H40*D40","v":0},0,0]
["tegels   <= 15 m2",{"$f":"IF($E$28<=15,$E$28,0)","v":0},"m2",null,{"$f":"IF(B41>0,'Tabel Tarieven'!$R9,0)","v":0},{"$f":"IF($B41>0,'Tabel Tarieven'!$R24,0)","v":0},{"$f":"IF($B41>0,'Tabel Tarieven'!$R30,0)","v":0},null,{"$f":"IF($B41>0,'Tabel Tarieven'!$R36,0)","v":0},0,0,{"$f":"G41","v":0},0,0]
["tegels   >15 m2",{"$f":"IF($E$28>15,IF($B$35=1,IF($E$28<=100,$E$28,0),$E$28),0)","v":0},"m2",{"$f":"IF(B42>0,$C$28,0)","v":0},{"$f":"IF(B42>0,'Tabel Tarieven'!$R10,0)","v":0},{"$f":"IF($B42>0,'Tabel Tarieven'!$R25,0)","v":0},null,{"$f":"IF($B42>0,'Tabel Tarieven'!$R31,0)","v":0},{"$f":"IF($B42>0,'Tabel Tarieven'!$R37,0)","v":0},0,0,{"$f":"H42*D42","v":0},0,0]
["tegels   >100 m2",{"$f":"IF($B$35=1,IF($E$28>100,$E$28,0),0)","v":0},"m2",{"$f":"IF(B43>0,$C$28,0)","v":0},{"$f":"IF(B43>0,'Tabel Tarieven'!$R11,0)","v":0},{"$f":"IF($B43>0,'Tabel Tarieven'!$R26,0)","v":0},null,{"$f":"IF($B43>0,'Tabel Tarieven'!$R32,0)","v":0},{"$f":"IF($B43>0,'Tabel Tarieven'!$R38,0)","v":0},0,0,{"$f":"H43*D43","v":0},0,0]
["trottoirband",{"$f":"I28","v":0},"m1",null,{"$f":"IF($B44>0,'Tabel Tarieven'!$R12,0)","v":0},null,null,null,{"$f":"IF($B44>0,'Tabel Tarieven'!$R39,0)","v":0},0,null,null,0,0]
["opsluit/koprolband",{"$f":"J28","v":0},"m1",null,{"$f":"IF($B45>0,'Tabel Tarieven'!$R13,0)","v":0},null,null,null,{"$f":"IF($B45>0,'Tabel Tarieven'!$R40,0)","v":0},0,null,null,0,0]
["Berm/gazon, herstel wegb.",{"$f":"E33","v":0},"m2",null,{"$f":"IF($B46>0,'Tabel Tarieven'!$R20,0)","v":0},null,null,null,{"$f":"IF($B46>0,'Tabel Tarieven'!R41,0)","v":0},{"$f":"E46*B46","v":0},null,null,{"$f":"I46*B46","v":0},{"$f":"+SUM(J46:M46)","v":0}]
["Berm/gazon, herstel aanb.",{"$f":"H33","v":0},"m2",null,null,null,null,null,{"$f":"IF($B47>0,'Tabel Tarieven'!R42,0)","v":0},0,null,null,0,0]
["Bomen en struiken",null,"St.",null,{"$f":"IF($B48>0,'Tabel Tarieven'!$R16,0)","v":0},null,null,null,{"$f":"IF($B48>0,'Tabel Tarieven'!R43,0)","v":0},null,null,null,{"$f":"I48*B48","v":0},{"$f":"N28","v":0}]
["Asfalt",{"$f":"(I31*J31)+I32*J32","v":0},"m2",null,{"$f":"IF($B49>0,'Tabel Tarieven'!$R17,0)","v":0},null,null,null,0,null,null,null,{"$f":"I49*B49","v":0},{"$f":"N33","v":0}]
[]
[]
["Naam en paraaf budgethouder:",null,{"$f":"M3","v":"…………………………………"},null,"d.d.",{"$f":"M2","v":"2018-01-23T09:49:59.730"},null,null,"Afgewerk d.d.","…………………………………………"]
[]
["Factuuradres:","………………………………………………………………………………………………………."]
[]
[]
[]
[]
[]
[]
[]
[]
[]
[]
[]
[]
[]
[]
[]
[]
[]
[]
[]
[]
[]
[]
[]
[]
[]
[]
[]
[]
[]
[]
[]
[null,null,null,null,null,null,null,null,null,null,null,null,{"$f":"IF(AND($A$9>1,$A$9<4,$E$28<=15),('Gemeenten met categorie'!#REF!),\"\")","v":""}]

{"sheet":"Gemeenten met categorie","index":1,"n_rows":504,"n_cols":6,"rows_kept":504,"cut":false,"hidden":false,"merged":[]}
[null,"De Gemeenten van Nederland per 01-01-2017"]
[null,"Gemeente:","Indeling:"]
[1,"Aa en Hunze",1,"  Postbus 93,  9460 AB  GIETEN"]
[2,"Aalburg",1,"  Postbus 40,  4260 AA  WIJK EN AALBURG"]
[3,"Aalsmeer",2,"  Postbus 253, 1430 AG  AALSMEER"]
[4,"Aalten",1,"  Postbus 119,  7120 AC  AALTEN"]
[5,"Achterkarspelen",1,"  Postbus 2,  9285 ZV  BUITENPOST"]
[6,"Alblasserdam",5,"  Postbus 2,  2950 AA  ALBLASSERDAM"]
[7,"Albrandswaard",2,"  Postbus 1000,  3160 GA  RHOON"]
[8,"Alkmaar",1,"  Postbus 53,  1800 BC  ALKMAAR"]
[9,"Almelo",1,"  Postbus 5100,  7600 GC  ALMELO"]
[10,"Almere",3,"  Postbus  200,  1300 AE  ALMERE"]
[11,"Alphen aan de Rijn",5,"  Postbus 13,  2400 AA  ALPHEN AAN DE RIJN"]
[12,"Alphen-Chaam",1,"  Postbus 3,  5130 AA  ALPHEN"]
[13,"Ameland",1,"  Postbus 22,  9160 AA  HOLLUM"]
[14,"Amersfoort",1,"  Postbus 4000,  3800 EA  AMERSFOORT"]
[15,"Amstelveen",5,"  Postbus 4,  1180 BA  AMSTELVEEN"]
[16,"Amsterdam",3,"  Postbus 202,  1000 AE  AMSTERDAM"]
[17,"Apeldoorn",1,"  Postbus 9033,  7300 ES  APELDOORN"]
[18,"Appingedam",5,"  Postbus 15,  9900 AA  APPINGEDAM"]
[19,"Arnhem",1,"  Postbus 9029, 6800 EL  ARNHEM"]
[20,"Assen",1,"  Postbus 30018,  9400 RA  ASSEN"]
[21,"Asten",1,"  Postbus 290,  5720 AG  ASTEN"]
[22,"Baarle-Nassau",1,"  Postbus 105,  5110 AC  BAARLE-NASSAU"]
[23,"Baarn",1,"  Postbus 1003,  3740 BA  BAARN"]
[24,"Barendrecht",5,"  Postbus 501,  2990 EA  BARENDRECHT"]
[25,"Barneveld",1,"  Postbus 63,  3770 AB  BARNEVELD"]
[26,"Bedum",5,"  Postbus 38,  9780 AA  BEDUM"]
[27,"Beek",1,"  Postbus 20,  6190 AA  BEEK"]
[28,"Beemster",4,"  Postbus 7,  1462 ZG  MIDDENBEEMSTER"]
[29,"Beesel",1,"  Postbus 4750,  5953 ZK  REUVER"]
[30,"Bellingwedde",1,"  Postbus 18,  9698 ZG  WEDDE"]
[31,"Berg en Dal ",1,"  Postbus 20, 6560 AA GROESBEEK"]
[32,"Bergeijk",1,"  Postbus 10000,  5570 GA  BERGEIJK"]
[33,"Bergen (L.)",1,"  Postbus 140,  5854 ZJ  BERGEN (L.)"]
[34,"Bergen (NH.)",1,"  Postbus 175,  1860 AD  BERGEN (NH.)"]
[35,"Bergen op Zoom",1,"  Postbus 35,  4600 AA  BERGEN OP ZOOM"]
[36,"Berkelland",1,"  Postbus 200, 7270 HA BORCULO"]
[37,"Bernheze",1,"  Postbus 19,  5384 ZG  HEESH"]
[38,"Best",1,"  Postbus 50,  5680 AB  BEST"]
[39,"Beuningen",1,"  Postbus 14,  6640 AA  BEUNINGEN"]
[40,"Beverwijk",1,"  Postbus 450,  1940 AL  BEVERWIJK "]
[41,"Binnenmaas",4,"  Postbus 5455,  3299 ZH  MAASDAM"]
[42,"Bladel",1,"  Postbus 11,  5530 AA BLADEL"]
[43,"Blaricum",1,"  Postbus 125,  1260 AC  BLARICUM"]
[44,"Bloemendaal",1,"  Postbus 201,  2050 AE  OVERVEEN"]
[45,"Bodegraven-Reeuwijk",5,"  Postbus 401,  2410 AK  BODEGRAVEN"]
[46,"Boekel",1,"  Postbus 99,  5427 ZH  BOEKEL"]
[47,"Borger-Odoorn",1,"  Postbus 3,  7875 ZG  EXLOO"]
[48,"Borne",1,"  Postbus 200, 7620 AE  BORNE"]
[49,"Borsele",1,"  Postbus 1,  4450 AA  HEINKENSZAND"]
[50,"Boxmeer",1,"  Postbus 450,  5830 AL  BOXMEER"]
[51,"Boxtel",1,"  Postbus 10000,  5280 DA  BOXTEL"]
[52,"Breda",1,"  Postbus 90156,  4800 RH  BREDA"]
[53,"Brielle",1,"  Postbus 101,  3230 AC  BRIELLE"]
[54,"Bronckhorst",1,"  Postbus 200, 7255 ZJ HENGELO"]
[55,"Brummen",1,"  Postbus 5,  6970 BV  BRUMMEN"]
[56,"Brunssum",1,"  Postbus 250,  6440 AG  BRUNSSUM"]
[57,"Bunnik",1,"  Postbus 5,  3980 CA  BUNNINK"]
[58,"Bunschoten",1,"  Postbus 200,  3750 GE  BUNSCHOTEN"]
[59,"Buren",1,"  Postbus 15,  4033 ZG  LIENDEN"]
[60,"Capelle aan den IJssel",5,"  Postbus 70,  2900 AB CAPELLE AAN DE IJSSEL"]
[61,"Castircum",1,"  Postbus 1301,  1900 BH  CASTRICUM"]
[62,"Coevorden",1,"  Postbus 2, 7740 AA  COEVORDEN"]
[63,"Cranendonck",1,"  Postbus 2090,  6020 AB  BUDEL"]
[64,"Cromstrijen",1,"  Postbus 7400,  3280 AE  NUMANSDORP"]
[65,"Cuijk",1,"  Postbus 10001,  5430 DA  CUIJK"]
[66,"Culemborg",3,"  Postbus 136,  4100 AC  CULEMBERG"]
[67,"Dalfsen",1,"  Postbus 35, 7720 AA  DALSEN"]
[68,"Dantumadeel",1,"  Postbus 22,  9104 BR  DAMWOUDE"]
[69,"De Bilt",1,"  Postbus 300,  3720 AH  BILTHOVEN"]
[70,"De Fryske Marren",1,"  Postbus 101,  8500 AC JOURE"]
[71,"De Marne",1,"  Postbus 11, 9965 ZG  LEENS"]
[72,"De Ronde Venen",2,"  Postbus 250,  3640 AG MIJDRECHT"]
[73,"De Wolden",1,"  Postbus 20,  7920 AA  ZUIDWOLDE"]
[74,"Delft",4,"  Postbus 78,  2600 ME  DELFT"]
[75,"Delfzijl",3,"  Postbus 20000,  9930 PA  DELFZIJL"]
[76,"Den Haag",1,"  Postbus 12600,  2500 DJ  DEN HAAG"]
[77,"Den Helder",1,"  Postbus 36,  1780 AA  DEN  HELDER"]
[78,"Deurne",1,"  Postbus 3,  5750 AA  DEURNE"]
[79,"Deventer",1,"  Postbus 5000, 7400GC  DEVENTER"]
[80,"Diemen",5,"  Postbus 191,  1110 AD  DIEMEN"]
[81,"Dinkelland",1,"  Postbus 11,  7590 AA  DENEKAMP"]
[82,"Doesburg",1,"  Postbus 100,  6980 AC  DOESBURG"]
[83,"Doetinchem",1,"  Postbus 9020,  7000 HA  DOETINCHEM"]
[84,"Dongen",1,"  Postbus 10153,  5100 GE  DONGEN"]
[85,"Dongeradeel",1,"  Postbus 1,  9100 AA  DOKKUM"]
[86,"Dordrecht",1,"  Postbus 8,  3300 AA  DORDRECHT"]
[87,"Drechterland",4,"  Postbus 9, 1616 ZG HOOGKARSPEL"]
[88,"Drimmelen",1,"  Postbus 19, 4920 AA  MADE"]
[89,"Dronten",1,"  Postbus 100,  8250 AC  DRONTEN"]
[90,"Druten",1,"  Postbus 1,  6650 AA  DRUTEN"]
[91,"Duiven",1,"  Postbus 6,  6920 AA  DUIVEN"]
[92,"Echt-Susteren",1,"  Postbus 450,  6100 AL  ECHT"]
[93,"Edam-Volendam",5,"  Postbus 180, 1130 AD  VOLENDAM"]
[94,"Ede",1,"  Postbus 9022,  6710 HK  EDE"]
[95,"Eemnes",1,"  Postbus 71,  3755 AN  EEMNES"]
[96,"Eemsmond",1,"  Postbus 11,  9980 AA  UITHUIZEN"]
[97,"Eersel",1,"  Postbus 12,  5520 AA  EERSEL"]
[98,"Eijsden-Margraten",1,"  Postbus 10, 6269 ZG MARGRATEN"]
[99,"Eindhoven",1,"  Postbus 90150,  5600 RB  EINDHOVEN"]
[100,"Elburg",1,"  Postbus 70,  8080 AB  ELBURG"]
[101,"Emmen",1,"  Postbus 3001,  7800 AA  EMMEN"]
[102,"Enkhuizen",4,"  Postbus 11,  1600 AA  ENKHUIZEN"]
[103,"Enschede",1,"  Postbus 20, 7500 AA  ENSCHEDE"]
[104,"Epe",1,"  Postbus 600,  8160 AP  EPE"]
[105,"Ermelo",1,"  Postbus 500, 3850 AM  ERMELO"]
[106,"Etten-Leur",1,"  Postbus 10100,  4870 GA  ETTEN-LEUR"]
[107,"Ferwerderadiel",1,"  Postbus 2,  9172 ZS  FERWERT"]
[108,"Franekeradeel",1,"  Postbus 58, 8800 AB  FRANEKER"]
[109,"Geertruidenberg",1,"  Postbus 10001,  4940 GA  RAAMSDONKSVEER"]
[110,"Geldermalsen",3,"  Postbus 112,  4190 CG  GELDERMALSEN"]
[111,"Geldrop-Mierlo",1,"  Postbus 10101, 5660 GA  GELDROP"]
[112,"Gemert-Bakel",1,"  Postbus 10000,  5420 DA  GEMERT"]
[113,"Gennep",1,"  Postbus 9003,  6590 HD  GENNEP"]
[114,"Giessenlanden",5,"  Postbus 1,  4223 ZG  HOORNAAR"]
[115,"Gilze en Rijen",1,"  Postbus 73, 5120 AB  RIJEN"]
[116,"Goeree-Overflakkee",1,"  Postbus 1, 3240 AA MIDDELHARNIS"]
[117,"Goes",1,"  Postbus 2118,  4460 MC  GOES"]
[118,"Goirle",1,"  Postbus 17,  5050 AA  GOIRLE"]
[119,"Gooise Meren",1,"  Postbus 6000, 1400 HA BUSSUM"]
[120,"Gorichem",5,"  Postbus 108,  4200 AC  GORINCHEM"]
[121,"Gouda",5,"  Postbus 1086,  2800 BB  GOUDA"]
[122,"Grave",1,"  Postbus 7,  5360 AA  GRAVE"]
[123,"Groningen",2,"  Postbus 2001, 9700 PB  GRONINGEN"]
[124,"Grootegast",1,"  Postbus 46,  9860 AA  GROOTEGAST"]
[125,"Gulpen-Wittem",1,"  Postbus 56,  6270 AB  GULPEN"]
[126,"Haaksbergen",1,"  Postbus 102,  7480 AC  HAAKSBERGEN"]
[127,"Haaren",1,"  Postbus 44,  5076 ZG  HAAREN"]
[128,"Haarlem",1,"  Postbus 511,  2003 PB  HAARLEM"]
[129,"Haarlemmerliede en Spaarnewoude",1,"  Postbus 83,  1160 AB  ZWANENBURG"]
[130,"Haarlemmermeer",2,"  Postbus 250,  2130 AG  HOOFDDORP"]
[131,"Halderberge",1,"  Postbus 5,  4730 AA  OUDENBOSCH"]
[132,"Hardenberg",1,"  Postbus 500,  7770 BA  HARDENBERG"]
[133,"Harderwijk",1,"  Postbus 149,  3840 AC  HARDERWIJK"]
[134,"Hardinxveld-Giessendam",5,"  Postbus 175,  3370 AD  HARDINXVELD-GIESSENDAM"]
[135,"Haren",1,"  Postbus 21,  9750 AA  HAREN"]
[136,"Harlingen",1,"  Postbus 10000,  8860 HA  HARLINGEN"]
[137,"Hattem",1,"  Postbus 93,  8050 AB  HATTUM"]
[138,"Heemskerk",1,"  Postbus 39,  1960 AA  HEEMSKERK"]
[139,"Heemstede",1,"  Postbus 352,  2100 AJ HEEMSTEDE"]
[140,"Heerde",1,"  Postbus 175,  8180 AD  HEERDE"]
[141,"Heerenveen",1,"  Postbus 15000,  8440 GA HEERENVEEN"]
[142,"Heerhugowaard",1,"  Postbus 390,  1700 AJ  HEERHUGOWAARD"]
[143,"Heerlen",1,"  Postbus 1,  6400 AA  HEERLEN"]
[144,"Heeze-Leende",1,"  Postbus 10000,  5590 GA  HEEZE"]
[145,"Heiloo",1,"  Postbus 1,  1850 AA  HEILOO "]
[146,"Hellendoorn",1,"  Postbus 200, 7440 AE  NIJVERDAL"]
[147,"Hellevoetsluis",1,"  Postbus 13,  3220 AA  HELLEVOETSLUIS"]
[148,"Helmond",1,"  Postbus 950,  5700 AZ  HELMOND"]
[149,"Hendrik-Ido-Ambacht",4,"  Postbus 34,  3340 AA  HENDRIK-IDO-AMBACHT"]
[150,"Hengelo (O.)",1,"  Postbus 18, 7550 AA  HENGELO"]
[151,"Het Bildt",1,"  Postbus 34,  9076 ZN  ST. ANNAPAROCHIE"]
[152,"Heumen",1,"  Postbus 200,  6800 AZ  MALDEN"]
[153,"Heusden",1,"  Postbus 31,  5250 AA  VLIJMEN"]
[154,"Hillegom",1,"  Postbus 32,  2180 AA  HILLEGOM"]
[155,"Hilvarenbeek",1,"  Postbus 3,  5080 AA  HILVARENBEEK"]
[156,"Hilversum",1,"  Postbus 9900,  12101 GM  HILVERSUM"]
[157,"Hof van Twente",1,"  Postbus 54,  7470 AB  GOOR"]
[158,"Hollands Kroon",1,"  Postbus 8, 1760 AA ANNA PAULOWNA"]
[159,"Hoogeveen",1,"  Postbus 20000,  7900 PA  HOOGEVEEN"]
[160,"Hoogezand -Sappemeer",1,"  Postbus 75,  9600 AB  HOOGEZAND"]
[161,"Hoorn",5,"  Postbus 603,  1620 AR  HOORN"]
[162,"Horst aan de Maas",1,"  Postbus 6005,  5960 AA  HORST"]
[163,"Houten",1,"  Postbus 30,  3990 DA  HOUTEN"]
[164,"Huizen",1,"  Postbus 5,  1270 AA  HUIZEN"]
[165,"Hulst",1,"  Postbus 49,  4560 AA  HULST"]
[166,"IJsselstein",1,"  Postbus 26, 3400 AA  IJSSELSTEIN"]
[167,"Kaag en Braassem",3,"  Postbus 1, 2370 AA ROELOFARENDSVEEN"]
[168,"Kampen",1,"  Postbus 5009,  8260 GA  KAMPEN"]
[169,"Kapelle",1,"  Postbus 79,  4420 AC  KAPELLE"]
[170,"Katwijk",1,"  Postbus 589,  2220 AN  KATWIJK"]
[171,"Kerkrade",1,"  Postbus 600, 6460 AP  KERKRADE"]
[172,"Koggenland",5,"  Postbus 21 1633 ZG AVENHORN"]
[173,"Kollumerland en Nieuwkruisland",1,"  Postbus 13,  9290 AA  KOLLUM"]
[174,"Korendijk",1,"  Postbus 3708,  3265 ZG  PIERSHIL"]
[175,"Krimpen aan den IJssel",5,"  Postbus 200,  2922 AE  KRIMPEN AAN DE IJSSEL"]
[176,"Krimpenerwaard",5,"  Postbus 51, 2820 AB STOLWIJK"]
[177,"Laarbeek",1,"  Postbus 190,  5740 AD  BEEK EN DONK"]
[178,"Landerd",1,"  Postbus 35, 5410 AA  ZEELAND"]
[179,"Landgraaf",1,"  Postbus 31000,  6370 AA  LANDGRAAF"]
[180,"Landsmeer",5,"  Postbus 1,  1120 AA  LANDSMEER"]
[181,"Langedijk",1,"  Postbus 15,  1723 ZG  NOORD-SCHARWOUDE"]
[182,"Lansingerland",5,"  Postbus 1,  2650 AA  BERKEL & RODENRIJS"]
[183,"Laren",1,"  Postbus 5,  1250 AA  LAREN"]
[184,"Leek",1,"  Postbus 100,  9350 AC  LEEK"]
[185,"Leerdam",3,"  Postbus 15, 4140 AA  LEERDAM"]
[186,"Leeuwarden",1,"  Postbus 21000,  8900 JA  LEEUWARDEN"]
[187,"Leeuwarderadeel",2,"  Postbus 24,  9050 AA  STIENS"]
[188,"Leiden",1,"  Postbus 9100,  2300 PC  LEIDEN"]
[189,"Leiderdorp",3,"  Postbus 35,  2353 AA  LEIDERDORP"]
[190,"Leidschendam-Voorburg",1,"  Postbus 905,  2270 AX  VOORBURG"]
[191,"Lelystad",1,"  Postbus 91,  8200 AB  LELYSTAD"]
[192,"Leudal",1,"  Postbus 3008, 6093 ZG HEYTHUYSEN"]
[193,"Leusden",1,"  Postbus 150,  3830 AD  LEUSDEN"]
[194,"Lingewaal",3,"  Postbus 1014,  4147 ZG  ASPEREN"]
[195,"Lingewaard",1,"  Postbus 15,  6680 AA  BEMMEL"]
[196,"Lisse",1,"  Postbus 200,  2160 AE  LISSE"]
[197,"Littenseradiel",1,"  Postbus 1,  8730 AA  WOMMELS"]
[198,"Lochem",1,"  Postbus 17,  7240 AA  LOCHEM"]
[199,"Loon op Zand",1,"  Postbus 7,  5170 AA  KAATSHEUVEL"]
[200,"Lopik",4,"  Postbus 50,  3410 CB  LOPIK"]
[201,"Loppersum",3,"  Postbus 25,  9919 ZG  LOPPERSUM"]
[202,"Losser",1,"  Postbus 90,  7580 AB  LOSSER"]
[203,"Maasdriel",1,"  Postbus 10000,  5330 GA  KERKDRIEL"]
[204,"Maasgouw",1,"  Postbus 7000,  6050 AA MAASBRACHT"]
[205,"Maassluis",3,"  Postbus 55,  3140 AB  MAASSLUIS"]
[206,"Maastricht",1,"  Postbus 1992,  6201 BZ  MAASTRICHT"]
[207,"Marum",1,"  Postbus 2, 9363 ZG  MARUM"]
[208,"Medemblik",5,"  Postbus 7,  1670 AA  MEDEMBLIK"]
[209,"Meerssen",1,"  Postbus 90,  6230 AB  MEERSSEN"]
[210,"Meierijstad",1,"  Postbus 10.001, 5460 DA VEGHEL"]
[211,"Menameradiel",1,"  Postbus 3,  9036 ZW  MENALDUM"]
[212,"Menterwolde",1,"  Postbus 2,  9649 ZG  MUNTENDAM"]
[213,"Meppel",1,"  Postbus 501,  7940 AM  MEPPEL"]
[214,"Middelburg",1,"  Postbus 6000,  430 LA  MIDDELBURG"]
[215,"Midden-Delftland",5,"  Postbus 1, 2636 ZG SCHIPLUIDEN"]
[216,"Midden-Drenthe",1,"  Postbus 24, 9410 AA  BEILEN"]
[217,"Mill en Sint Hubert",1,"  Postbus 39,  5450 AA  MILL"]
[218,"Moerdijk",1,"  Postbus 4,  4760 AA  ZEVENBERGEN"]
[219,"Molenwaard",5,"  Postbus 5, 2970 AA BLESKENSGRAAF"]
[220,"Montferland",1,"  Postbus 47,  6940 BA  DIDAM"]
[221,"Montfoort",2,"  Postbus 41,  3417 ZG  MONTFOORT"]
[222,"Mook en Middelaar",1,"  Postbus 200,  6585 ZK  MOOK"]
[223,"Neder-Betuwe",1,"  Postbus 20,  4043 ZG  OPHEUSDEN"]
[224,"Nederweert",1,"  Postbus 2728,  6030 AA  NEDERWEERT"]
[225,"Neerijnen",2,"  Postbus 30,  4180 BA  WAARDENBURG"]
[226,"Nieuwegein",1,"  Postbus 1,  3430 AA  NIEUWEGEIN"]
[227,"Nieuwkoop",3,"  Postbus 17,  2421 EB  NIEUWKOOP"]
[228,"Nijkerk",1,"  Postbus 1000,  3860 BA  NIJKERK"]
[229,"Nijmegen",1,"  Postbus 9105,  6500 HG  NIJMEGEN"]
[230,"Nissewaard",2,"  Postbus 25, 3200 AA SPIJKENISSE"]
[231,"Noord-Beveland",1,"  Postbus 3,  4490 AA  WIISENKERKE"]
[232,"Noordenveld",1,"  Postbus 109,  9300 AC  RODEN"]
[233,"Noordoostpolder",1,"  Postbus 155,  8300 AD EMMELOORD"]
[234,"Noordwijk",1,"  Postbus 298,  2200 AG  NOORDWIJK"]
[235,"Noordwijkerhout",1,"  Postbus 13,  2210 AA  NOORDWIJKERHOUT"]
[236,"Nuenen, Gerwen en Nederwetten",1,"  Postbus 10000,  5670 GA  NUENEN"]
[237,"Nunspeet",1,"  Postbus 79,  8070 AB  NUNSPEET"]
[238,"Nuth",1,"  Postbus 22000,  6360 AA NUTH"]
[239,"Oestgeest",1,"  Postbus 1270,  2340 BG  OEGSTGEEST"]
[240,"Oirschot",1,"  Postbus 11,  5688 ZG  OIRSCHOT"]
[241,"Oisterwijk",1,"  Postbus 10101,  5060 GA  OISTERWIJK"]
[242,"Oldambt",1,"  Postbus 175,  9670 AD  WINSCHOTEN"]
[243,"Oldebroek",1,"  Postbus 2,  8096 ZG  OLDENBROEK"]
[244,"Oldenzaal",1,"  Postbus 354,  7570 AJ  OLDENZAAL"]
[245,"Olst-Wijhe",1,"  Postbus 16,  8120 AA  OLST"]
[246,"Ommen",1,"  Postbus 100,  7730 AC  OMMEN"]
[247,"Onderbanken",1,"  Postbus 1090,  6450 CB  SCHINVELD"]
[248,"Oost Gelre",1,"  Postbus 17, 7130 AA LICHTENVOORDE"]
[249,"Oosterhout",1,"  Postbus 10150,  4900 GB  OOSTERHOUT"]
[250,"Ooststellingwerf",1,"  Postbus 38,  8430 AA  OOSTERWOLDE"]
[251,"Oostzaan",4,"  Postbus 15,  1510 AA  OOSTZAAN"]
[252,"Opmeer",3,"  Postbus 199,  1715 ZK  SPANBROEK"]
[253,"Opsterland",1,"  Postbus 10000,  9244 ZP  BEESTERZWAAG"]
[254,"Oss",1,"  Postbus 5,  5340 BA  OSS"]
[255,"Oud-Beijerland",1,"  Postbus 2003,  3260 EA OUD-BEIJERLAND"]
[256,"Oude-IJsselstreek",1,"  Postbus 42,  7980 AA GENDERINGEN"]
[257,"Ouder-Amstel",5,"  Postbus 35,  1190 AA OUDERKERK AAN DE AMSTEL"]
[258,"Oudewater",5,"  Postbus 100,  3420 DC  OUDEWATER"]
[259,"Overbetuwe",1,"  Postbus 11,  6660 AA  ELST"]
[260,"Papendrecht",5,"  Postbus 11,  3350 AA  PAPENDRECHT"]
[261,"Peel en Maas",1,"  Postbus 7088, 5980 AB PANNINGEN"]
[262,"Pekela",1,"  Postbus 20000,  9665 ZM  OUDE PEKELA"]
[263,"Pijnakker-Nootdorp",5,"  Postbus 1, 2640 AA  PIJNACKER"]
[264,"Purmerend",3,"  Postbus 15,  1440 AA  PURMEREND"]
[265,"Putten",1,"  Postbus 400,  3880 AK  PUTTEN"]
[266,"Raalte",1,"  Postbus 140,  8100 AC  RAALTE"]
[267,"Reimerswaal",1,"  Postbus 70,  4416 ZH  KRUININGEN"]
[268,"Renkum",1,"  Postbus 9100,  6860 HA  OOSTERBEEK"]
[269,"Renswoude",1,"  Postbus 8,  3927 ZL  RENSWOUDE"]
[270,"Reusel-De Mierden",1,"  Postbus 11,  5540 AA REUSEL"]
[271,"Rheden",1,"  Postbus 9110,  6994 ZJ  DE STEEG"]
[272,"Rhenen",1,"  Postbus 201,  3910 AE  RHENEN"]
[273,"Ridderkerk",5,"  Postbus 271,  2980 AG  RIDDERKERK"]
[274,"Rijnwaarden",1,"  Postbus 49,  6916 ZG  TOLKAMER"]
[275,"Rijssen-Holten",1,"  Postbus 244, 7460 AE RIJSSEN"]
[276,"Rijswijk",1,"  Postbus 5305,  2280 HH  RIJSWIJK"]
[277,"Roerdalen",1,"  Postbus 6740,  6075 ZG  HERKENBOSCH"]
[278,"Roermond",1,"  Postbus900,  6040 AX  ROERMOND"]
[279,"Roosendaal",1,"  Postbus 5000,  4700 KA  ROOSENDAAL"]
[280,"Rotterdam",1,"  Postbus 70012,  3000 KP  ROTTERDAM"]
[281,"Rozendaal",1,"  Postbus 9106,  6880 HH VELP"]
[282,"Rucphen",1,"  Postbus 9,  4715 ZG  RUCPHEN"]
[283,"Schagen",2,"  Postbus 8,  1740 AA  SCHAGEN"]
[284,"Scherpenzeel",1,"  Postbus 100,  3925 ZJ  SCHERPENZEEL"]
[285,"Schiedam",5,"  Postbus 1501,  3100 EA  SCHIEDAM"]
[286,"Schiermonnikoog",1,"  Postbus 20,  9166 ZP  SCHIERMONNIKOOG"]
[287,"Schinnen",1,"  Postbus 50,  6365 ZH  SCHINNEN"]
[288,"Schouwen-Duiveland",1,"  Postbus 5555,  4300 AJ  ZIERIKZEE"]
[289,"s-Gravenhage",1,"  Postbus 12600,  2500 DJ  's-GRAVENHAGE"]
[290,"s-Hertogenbosch ",1,"  Postbus 12345,  5200 GZ  's HERTOGENBOSCH"]
[291,"Simpelveld",1,"  Postbus 21000,  6369 ZG  SIMPELVELD"]
[292,"Sint Anthonis",1,"  Postbus 40,  5845 ZG  SINT ANTHOnIS"]
[293,"Sint-Michelsgestel",1,"  Postbus 10000, 5270 GA  SINT-MICHIELSGESTEL"]
[294,"Sittard-Geleen",1,"  Postbus 18,  6130 AA  SITTARD"]
[295,"Sliedrecht",5,"  Postbus 16,  3360 AA  SLIEDReCHT"]
[296,"Slochteren",1,"  Postbus 13, 9620 AA  SLOCHTEREN"]
[297,"Sluis",1,"  Postbus 27,  4500 AA  OOSTBURG"]
[298,"Smallingerland",1,"  Postbus 10000,  9200 HA  DRACHTEN"]
[299,"Soest",1,"  Postbus 2000,  3760 CA  SOEST"]
[300,"Someren",1,"  Postbus 290, 5710 AG  SOMEREN"]
[301,"Son en Breugel",1,"  Postbus 8,  5690  AA  SON"]
[302,"Stadskanaal",1,"  Postbus 140, 9500 AC  STADSKANAAL"]
[303,"Staphorst",1,"  Postbus 2,  7950 AA  STAPHORST"]
[304,"Stede Broec",4,"  Postbus 20,  1610 AA  BOVENKARSPEL"]
[305,"Steenbergen",1,"  Postbus 6,  4650 AA  STEENBERGEN"]
[306,"Steenwijkerland",1,"  Postbus 162,  8330 AD  STEENWIJK"]
[307,"Stein",1,"  Postbus 15, 6170 AA  STEIN"]
[308,"Stichtse Vecht",2,"  Postbus 1212, 3600 BE MAARSSEN "]
[309,"Strijen",4,"  Postbus 5881,  3290 EA  STRIJEN"]
[310,"Sudwest Fryslan",1,"  Postbus 10000,  8600 HA  SNEEK"]
[311,"Ten Boer",3,"  Postbus 7,  9790 AA  TEN BOER"]
[312,"Terneuzen",1,"  Postbus 35,  4530 AA  TERNEUZEN"]
[313,"Terschelling",1,"  Postbus 14,  8880 AA  WEST-TERSCHELLING"]
[314,"Texel",1,"  Postbus 200, 1790 AE  DEN BURG"]
[315,"Teylingen",1,"  Postbus 149, 2215 VOORHOUT"]
[316,"Tholen",2,"  Postbus 51, 4690 AB THOLEN"]
[317,"Tiel",1,"  Postbus 6325, 4000 HH TIEL"]
[318,"Tilburg",1,"  Postbus 90155, 5000 LH TILBURG"]
[319,"Tubbergen",1,"  Postbus 30, 7650 AA TUBBERGEN"]
[320,"Twenterand",1,"  Postbus 67, 7670 AB  VRIEZENVEEN"]
[321,"Tynaarlo",1,"  Postbus 5,  9480 AA VRIES"]
[322,"Tytsjerksteradiel",1,"  Postbus 3,  9250 AA  BURGUM"]
[323,"Uden",1,"  Postbus 83,  5400 AB UDEN"]
[324,"Uitgeest",1,"  Postbus 7,  1910 AA  UITGEEST"]
[325,"Uithoorn",5,"  Postbus 8, 1420 AA  UITHOORN"]
[326,"Urk",1,"  Postbus 77,  8320 AB  URK"]
[327,"Utrecht",1,"  Postbus 16200,  3500 CE  UTRECHT"]
[328,"Utrechtse Heuvelrug",1,"  Postbus 200, 3940 AE DOORN"]
[329,"Vaals",1,"  Postbus 450,  6290 AL  VAALS"]
[330,"Valkenburg aan de Geul",1,"  Postbus 998, 6300 AZ  VALKENBURG AAN DE GEUL"]
[331,"Valkenswaard",1,"  Postbus 10100,  5550 GA  VALKENSWAARD"]
[332,"Veendam",1,"  Postbus 20004,  9640 PA  VEENDAM"]
[333,"Veenendaal",1,"  Postbus 1100,  3900 BC  VEENENDAAL"]
[334,"Veere",1,"  Postbus 1000, 4357 ZV  DOMBURG"]
[335,"Veldhoven",1,"  Postbus 10101,  5500 GA  VELDHOVEN"]
[336,"Velsen",1,"  Postbus 465, 1970 AL  IJMUIDEN"]
[337,"Venlo",1,"  Postbus 3434,  5902 RK  VENLO"]
[338,"Venray",1,"  Postbus 500,  5800 AM  VENRAY"]
[339,"Vianen",2,"  Postbus 46,  4130 EA  VIANEN"]
[340,"Vlaardingen",5,"  Postbus 1002, 3130 EB VLAARDINGEN"]
[341,"Vlagtwedde",1,"  Dorpsstraat 1, 9551 AB SELLINGEN"]
[342,"Vlieland",1,"  Postbus 10,  8899 ZN  VLIELAND"]
[343,"Vlissingen",1,"  Postbus 3000,  4380 GV  VLISSINGEN"]
[344,"Voerendaal",1,"  Postbus 23000,  6367 ZG  VOERENDAAL"]
[345,"Voorschoten",1,"  Postbus 393,  2250 AJ  VOORSCOTEN"]
[346,"Voorst",1,"  Postbus 9000, 7390 HA  TWELLO"]
[347,"Vught",1,"  Postbus 10100,  5260 GA  VUGHT"]
[348,"Waalre",1,"  Postbus 10000,  5580 GA  WAALRE"]
[349,"Waalwijk",1,"  Postbus 10150,  5140 GB  WAALWIJK"]
[350,"Waddinxveen",5,"  Postbus 400,  2740 AK  WADDINXVEEN"]
[351,"Wageningen",1,"  Postbus 1, 6700 AA  WAGENINGEN"]
[352,"Wassenaar",1,"  Postbus 499,  2240 AL  WASSENAAR"]
[353,"Waterland",5,"  Postbus 1000,  1140 BA  MONNICKENDAM"]
[354,"Weert",1,"  Postbus 950,  6000 AZ  WEERT"]
[355,"Weesp",1,"  Postbus 5099,  1380 GB  WEESP"]
[356,"Werkendam",1,"  Postbus 16,  4250 DA  WERKENDAM"]
[357,"West Maas en Waal",1,"  Postbus 1,  6658  ZG BENEDEN-LEEUWEN"]
[358,"Westerveld",1,"  Postbus 50,  7970 AB  HAVELTE"]
[359,"Westervoort",1,"  Postbus 40, 6930 AA  WESTERVOORT"]
[360,"Westland",1,"  Postbus 150,  2670 AD  NAALDWIJK"]
[361,"Weststellingwerf",1,"  Postbus 60,  8470 AB  WOLVEGA"]
[362,"Westvoorne",1,"  Postbus 550,  3235 ZH  ROCKANJE"]
[363,"Wierden",1,"  Postbus 43,  7640 AA  WIERDEN"]
[364,"Wijchen",1,"  Postbus 9000, 6600 HA  WIJCHEN"]
[365,"Wijdemeren",1,"  Postbus 41,  1243 ZG  's Graveland"]
[366,"Wijk bij Duurstede",1,"  Postbus 83,  3960 BB  WIJK BIJ DUURSTEDE"]
[367,"Winsum",4,"  Postbus 10,  9950 AA  WINSUM"]
[368,"Winterswijk",1,"  Postbus 101,  7100 AC  WINTERSWIJK"]
[369,"Woensdrecht",1,"  Postbus 24,  4630 AA  HOOGERHEIDE"]
[370,"Woerden",4,"  Postbus 45,  3440 AA  WOERDEN"]
[371,"Wormerland",1,"  Postbus 20,  1530 AA  WORMER"]
[372,"Woudenberg",1,"  Postbus 16,  3930 EA  WOUDENBERG"]
[373,"Woudrichem",2,"  Postbus 6,  4285 ZG  WOUDRICHEM"]
[374,"Zaanstad",3,"  Postbus 2000,  1500 GA  ZAANDAM"]
[375,"Zaltbommel",1,"  Postbus 10002,  5300 DA  ZALTBOMMEL"]
[376,"Zandvoort",1,"  Postbus 2,  2040 AA  ZANDVOORT"]
[377,"Zederik",4,"  Postbus 1,  4230 BA  MEERKERK"]
[378,"Zeewolde",1,"  Postbus 1,  3890 AA  ZEEWOLDE"]
[379,"Zeist",1,"  Postbus 513,  3700 AM  ZEIST"]
[380,"Zevenaar",1,"  Postbus 10, 6900 AA  ZEVENAAR"]
[381,"Zoetermeer",3,"  Postbus 15,  2700 AA  ZOETERMEER"]
[382,"Zoeterwoude",5,"  Postbus 34,  2380 AA  ZOETERWOUDE"]
[383,"Zuidhorn",2,"  Postbus 3,  9800 AA  ZUIDHORN"]
[384,"Zuidplas",5,"  Postbus 100, 2910 AC NIEUWERKERK a/d IJSSEL"]
[385,"Zundert",1,"  Postbus 10001,  4880 GA  ZUNDERT"]
[386,"Zutphen",1,"  Postbus 41,  7200 AA  ZUTPHEN"]
[387,"Zwartewaterland",1,"  Postbus 23,  8060 AA  HASSELT"]
[388,"Zwijndrecht",4,"  Postbus 15,  3330 AA  ZWIJNDRECHT"]
[389,"Zwolle",1,"  Postbus 10007,  8000 GA  ZWOLLE"]
[]
[]
[]
[]
[]
[]
[]
[]
[]
[]
[]
[]
[]
[]
[]
[]
[]
[]
[]
[]
[]
[]
[]
[]
[]
[]
[]
[]
[]
[]
[]
[]
[]
[]
[]
[]
[]
[]
[]
[]
[]
[]
[]
[]
[]
[]
[]
[]
[]
[]
[]
[]
[]
[]
[]
[]
[]
[]
[]
[]
[]
[]
[]
[]
[]
[]
[]
[]
[]
[]
[]
[]
[]
[]
[]
[]
[]
[]
[]
[]
[]
[]
[]
[]
[]
[]
[]
[]
[]
[]
[]
[]
[]
[]
[]
[]
[]
[]
[]
[]
[]
[]
[]
[]
[]
[]
[null,"Keuze wie het werk uitvoert?"]
[1,"A: Herstel en onderhoud uitgevoerd door de gemeente",null,"Tarief A:  Herstel en onderhoud uitgevoerd door de gemeente"]
[2,"B1: Herstel en onderhoud door de aanbieder",null,"Tarief B1: Herstel en onderhoud door de aanbieder",null,"Tarief > 100 is gelijk aan >15m2"]
[3,"B2: Herstel door de aanbieder en onderhoud door de gemeente",null,"Tarief B2: Herstel door de aanbieder en onderhoud door de gemeente",null,"Tarief > 100 is gelijk aan >15m2"]
[4,"C: Herstel door de gemeente vooraf gaande aan algehele herbestrating *)",null,"Tarief C:  Herstel door de gemeente vooraf gaande aan algehele herbestrating","Dit tarief alleen indien vooraf afgestemd en maximaal 1 jaar voor geplande herbestrating.","Tarief > 100 is gelijk aan >15m2"]
[5,"C1: Herstel en onderhoud door aanbieder voorafgaand aan gehele herbestrating *)",null,"Tarief C1: Herstel en onderhoud door aanbieder voorafgaand aan gehele herbestrating","Dit tarief alleen indien vooraf afgestemd en maximaal 1 jaar voor geplande herbestrating.","Tarief > 100 is gelijk aan >15m2"]
[6,"C2: Herstel door aanbieder, onderhoud door gemeente  voorafgaand aan gehele herbestrating *)",null,"Tarief C2: Herstel door aanbieder, onderhoud door gemeente voorafgaand aan gehele herbestrating","Dit tarief alleen indien vooraf afgestemd en maximaal 1 jaar voor geplande herbestrating.","Tarief > 100 is gelijk aan >15m2"]

{"sheet":"INFO","index":2,"n_rows":71,"n_cols":5,"rows_kept":71,"cut":false,"hidden":false,"merged":[]}
[]
[null,null,"Werking \"Rekenblad\":"]
[null,"-","Door de groene posities in te vullen vindt de verrekening plaats volgens de \"Richtlijn tarieven (graaf) werkzaamheden Telecom\"."]
[null,"-","Om de bomen, struiken en het asfalt te kunnen verrekenen kan een projectprijs worden afgesproken en ingevoerd."]
[null,"-","Door scrollen kan de gemeente worden ingesteld en daarna opgeslagen. Dus een éénmalige actie!"]
[null,"-","Tevens kan door scrollen de aard van de werkzaamheden worden ingesteld."]
[null,"-","Door beide scrollbeweging uit te voeren worden de gemeente en de juiste tarieven ingesteld."]
[]
[null,null,"Dit \"Rekenblad\" is een uitgave van de Vereniging van Nederlandse Gemeenten en is gebaseerd op:"]
[null,null,"\"RICHTLIJN tarieven (graaf)werkzaamheden Telecom\", uitgegeven: 12 maart 2004"]
[null,null,"Richtlijn voor gemeenten en aanbieders van telecom diensten ten behoeve van het berekenen van tarieven voor herstel, onderhoud, beheer- en "]
[null,null,"degeneratiekosten bij (graaf)werkzaamheden door aanbieders, in openbare gronden die in eigendom of beheer zijn van gemeenten."]
[null,"-","De Richtlijn bevat: ",null,"definities, rekenmethodiek en tarieven"]
[null,"-","In de tarieven wordt geen onderscheid gemaakt tussen lasgaten en sleuven. Alle werkzaamheden worden berekend per vierkante meter."]
[null,null,"De degeneratie vergoeding wordt verrekend per strekkende meter."]
[null,"-","Bij de berekening van de degeneratie vergoeding wordt gebruik gemaakt van de per 1 januari 2001 gehanteerde berekenwijze voor de"]
[null,null,"maatstaf bodemgesteldheid ten behoeve van de algemene uitkering uit het gemeentefonds. De bodempercentages t.g.v. samenvoegingen van gemeenten"]
[null,null,"zijn berekend tot 1 januari van het voorafgaande jaar."]
[]
[null,null,"Gebruik van dit rekenblad"]
[null,"-","De wijze van de sleufbreedte is als volgt gedefinieerd:"]
[null,null,null,"- de werkelijke sleufbreedte, deze wordt tijdens de uitvoering gemeten"]
[null,null,null,"* de werkelijke sleufbreedte wordt ingevoerd in het rekenblad"]
[null,null,null,"* het rekenblad rekent met de oppervlakte (lengte x breedte) zoals ingevuld. "]
[null,null,null,"* de gatvergroting wordt niet in oppervlak uitgedrukt maar in een toeslag van 20% op de uitvoeringskosten (en dus op alle tariefcomponenten)"]
[null,null,null,"Geen sleufbreedte gemeten  "]
[null,null,null,"- de gemiddelde breedte van het grondverzet, gemeten als breedte van de toegepaste graafbak, naar boven afgerond op 5 cm, "]
[null,null,null,"- met een minimum breedte voor tegelverharding van 30 cm en voor klinkerverharding van 20 cm."]
[null,"-","De \"Richtlijn\" is van toepassing op het herstel van opgebroken bestrating."]
[null,"-","In de \"Richtlijn\" is aangegeven wanneer de sleuf door de aanbieder moet worden gedicht en onder welke voorwaarden dit is toegestaan."]
[null,"-","De werkzaamheden die de gemeente verricht en waarvoor bij het verlenen van het instemmingbesluit leges worden geheven, vallen niet"]
[null,null,"onder de berekening van de beheerskosten in deze \"Richtlijn\"."]
[null,"-","In de rekenmethodiek van de \"Richtlijn\" zijn ook groenvoorzieningen opgenomen."]
[null,"-","De \"Richtlijn\" bevat ook een degeneratievergoeding voor tegelverharding."]
[null,"-","Per project is het aantal m2 bepalend voor de toepassing van tarief <15 m2 of >15 m2, afzonderlijk voor tegels en klinkers. Dus tegel- en "]
[null,null,"klinkeroppervlakken niet bij elkaar optellen. Op het rekenblad gaat dat automatisch."]
[null,"-","Meerdere kleine opbrekingen binnen 10 m (zoals huisaansluitingen) worden aangemerkt als één reparatie."]
[null,"-","Op de tarieven is indexering van toepassing. Jaarlijks zal door de VNG een geïndexeerd \"Rekenblad\" tijdig ter beschikking worden gesteld."]
[]
[null,null,"Afwijkende tarieven"]
[null,"-","Voor gefundeerde verharding en voor groenvoorzieningen wordt geen degeneratievergoeding berekend."]
[null,"-","Wanneer er van band tot band wordt hersteld wordt er geen degeneratievergoeding berekend en geen gatvergroting van 20%. Het "]
[null,null,"rekenblad is in deze gevallen niet toepasbaar. Maak per project afspraken, bij voorkeur vooruitlopend op de uitvoering."]
[null,"-","Voor gesloten verhardingen zoals asfalt, cementbeton, grootschalige en kleinschalige verhardingselementen, plantsoenen en bomen, "]
[null,null,"dienen tussen de gemeente en de aanbieder op projectniveau, of zo mogelijk generiek, afspraken te worden gemaakt. Voor de verrekening"]
[null,null,"kan het \"rekenblad\" worden gebruikt."]
[]
[null,null,"Wijzigingen per 1-1-2018 "]
[null,"-","De wijzigingen hebben geen invloed op de \"Richtlijn tarieven (graaf) werkzaamheden Telecom\", maar maken het rekenblad "]
[null,null,"praktischer en overzichtelijker. "]
[null,"-","Naast Tarief C (Herstel door de gemeente vooraf gaande aan algehele herbestrating) is ook toegevoegd Tarief C1 (idem, herstel en onderhoud"]
[null,null,"door aanbieder/netbeheerder) en Tarief C2 (idem, herstel door aanbieder/netbeheerder, onderhoud door gemeente)."]
[null,"-","De C-tarieven gelden alleen indien vooraf afgesproken en maximaal 1 jaar voor de geplande herbestrating."]
[null,"-","Banden (trottoirbanden, opsluit- / koprolbanden) zijn nu opgenomen in de tarieven A, B1, enz. Zo wordt automatisch het juiste tarief berekend."]
[null,"-","Het tarief voor bermen en gazons is herzien, waardoor het minimum tarief t/m 50m2 is vervallen. Er zijn nu 2 tarieven: Bermen, gazon herstel door"]
[null,null,"gemeente en bermen, gazon herstel door aanbieder/netbeheerder. De keuze voor welk tarief is onafhankelijk gemaakt van Tarief A, B1, enz,"]
[null,"-","De tabel tarieven is toegevoegd. (Zie uitleg hieronder). Hierin staan alle tariefcomponenten per kostensoort. De herkomst is de berekening"]
[null,null,"in het bestand tariefbladen-slechte-bodem-vng waar een gelijke tabel als resultaat van de berekening van de tarieven is te vinden."]
[null,"-","Steeds meer gemeenten hanteren deze tarieven ook voor netbeheerders, niet telecombedrijven. Als te verrekenen oppervlakte wordt dan "]
[null,null,"vrijwel altijd de werkelijk opgebroken bestrating gehanteerd. Deze mogelijkheid is toegevoegd."]
[]
[null,null,"Nadere uitleg Tabel tarieven"]
[null,"-","Per kostensoort (Uitvoerings-, Onderhouds-, Degeneratie- en Beheerskosten) wordt met een kruisje aangegeven of dit van toepassing"]
[null,null,"is per tarief (A, B1, B2, C, C1 en C2)."]
[null,"-","In de kolommen daarachter staan de tarieven van die kostensoort en omschrijving per bodemcategorie."]
[null,"-","Wanneer het rekenblad gevuld wordt (keuze gemeente en soort tarief) verschijnen in de laatste kolom de tarieven die van toepassing zijn,"]
[null,null,"deze worden gebruikt voor de berekening op het rekenblad voor de specificatie."]
[]
[null,null,"Toepassing:"]
[null,null,"De VNG en een representatieve vertegenwoordiging van de Telecomsector hebben als: \"Packed deal\" overeenstemming bereikt over de"]
[null,null,"rekenmethodiek en de tarieven van de \"Richtlijn\", die integraal behoort te worden toegepast."]

{"sheet":"Tabel Tarieven","index":3,"n_rows":662,"n_cols":20,"rows_kept":662,"cut":false,"hidden":false,"merged":[[3,17,4,19],[0,17,0,19],[2,15,3,15],[43,0,45,15],[0,1,0,7],[0,10,0,15],[1,8,4,9],[2,10,3,10],[2,11,3,11],[2,12,3,12],[2,13,3,13],[2,14,3,14],[1,1,2,7]]}
["Kostensoort","Tariefgroepen",null,null,null,null,null,null,"Omschrijving","Eenheid","Bedragen  2018 v2 per kostensoort per bodemcategorie",null,null,null,null,null,null,"Actueel tarief"]
["Uitvoeringskosten","X in kolom is van toepassing bij deze tariefgroep",null,null,null,null,null,null,"Klinkers, tegels, trottoirband, opsluit/koprolband, berm/gazon.\nEenheid: per m2, m1,\nbij degenaratie per reparatie of m1 sleuf",null,"Afh. Cat.?:","Bij  nee zijn de tarieven gelijk in elke kolom: onafhankelijk categorie",null,null,null,null,null,"Tarief",{"$f":"Rekenblad!B35","v":1}]
["Onderhoudskosten",null,null,null,null,null,null,null,null,null,"> Zie\n> tabblad >>>>","< 50% slechte bodem","50-60% slechte bodem","60-70% slechte bodem","70-80% slechte bodem","> 80% slechte bodem",null,"Categorie",{"$f":"Rekenblad!B36","v":1}]
["Degeneratiekosten",1,2,3,4,5,6,"-",null,null,null,null,null,null,null,null,null,"Toelichting: deze waarden worden gebruikt in het Rekenblad en zijn afhankelijk van de invoer op het Rekenblad"]
["Beheerkosten","A","B1","B2","C","C1","C2","D",null,null,"Afh. Cat.?",1,2,3,4,5]
["Uitvoeringskosten","X ",null,null,null,null,null,null,"klinkers <= 15 m2","m2","Nee",29.21,29.21,29.21,29.21,29.21,null,{"$f":"IF($S$2=1,INDEX($L$6:$P$42,,$S$3),0)+R14","v":29.21},"Uitvoeringskosten C opgeteld regel 14"]
["Uitvoeringskosten","X ",null,null,null,null,null,null,"klinkers >15 m2","m2","Nee",23.88,23.88,23.88,23.88,23.88,null,{"$f":"IF($S$2=1,INDEX($L$6:$P$42,,$S$3),0)+R15","v":23.88},"Uitvoeringskosten C opgeteld regel 15"]
["Uitvoeringskosten","X ",null,null,null,null,null,null,"klinkers  >100 m2","m2","Nee",21.22,21.22,21.22,21.22,21.22,null,{"$f":"IF($S$2=1,INDEX($L$6:$P$42,,$S$3),0)","v":21.22}]
["Uitvoeringskosten","X ",null,null,null,null,null,null,"tegels   <= 15 m2","m2","Nee",23.21,23.21,23.21,23.21,23.21,null,{"$f":"IF($S$2=1,INDEX($L$6:$P$42,,$S$3),0)+R16","v":23.21},"Uitvoeringskosten C opgeteld regel 16"]
["Uitvoeringskosten","X ",null,null,null,null,null,null,"tegels   >15 m2","m2","Nee",17.87,17.87,17.87,17.87,17.87,null,{"$f":"IF($S$2=1,INDEX($L$6:$P$42,,$S$3),0)+R17","v":17.87},"Uitvoeringskosten C opgeteld regel 17"]
["Uitvoeringskosten","X ",null,null,null,null,null,null,"tegels   >100 m2","m2","Nee",16.8,16.8,16.8,16.8,16.8,null,{"$f":"IF($S$2=1,INDEX($L$6:$P$42,,$S$3),0)","v":16.8}]
["Uitvoeringskosten","X ",null,null,null,null,null,null,"trottoirband","m1","Nee",10.89,10.89,10.89,10.89,10.89,null,{"$f":"IF($S$2=1,INDEX($L$6:$P$42,,$S$3),0)+R18","v":10.89},"Uitvoeringskosten C opgeteld regel 18"]
["Uitvoeringskosten","X ",null,null,null,null,null,null,"opsluit/koprolband","m1","Nee",8.67,8.67,8.67,8.67,8.67,null,{"$f":"IF($S$2=1,INDEX($L$6:$P$42,,$S$3),0)+R19","v":8.67},"Uitvoeringskosten C opgeteld regel 19"]
["Uitvoeringskosten",null,null,null,"X ",null,null,null,"klinkers <= 15 m2","m2","Nee",12.17,12.17,12.17,12.17,12.17,null,{"$f":"IF($S$2=4,INDEX($L$6:$P$42,,$S$3),0)","v":0},"Is opgeteld bij regel 6"]
["Uitvoeringskosten",null,null,null,"X ",null,null,null,"klinkers >15 m2","m2","Nee",9.9499999999999993,9.9499999999999993,9.9499999999999993,9.9499999999999993,9.9499999999999993,null,{"$f":"IF($S$2=4,INDEX($L$6:$P$42,,$S$3),0)","v":0},"Is opgeteld bij regel 7"]
["Uitvoeringskosten",null,null,null,"X ",null,null,null,"tegels   <= 15 m2","m2","Nee",9.67,9.67,9.67,9.67,9.67,null,0,"Is opgeteld bij regel 9"]
["Uitvoeringskosten",null,null,null,"X ",null,null,null,"tegels   >15 m2","m2","Nee",7.45,7.45,7.45,7.45,7.45,null,0,"Is opgeteld bij regel 10"]
["Uitvoeringskosten",null,null,null,"X ",null,null,null,"trottoirband","m1","Nee",4.54,4.54,4.54,4.54,4.54,null,0,"Is opgeteld bij regel 12"]
["Uitvoeringskosten",null,null,null,"X ",null,null,null,"opsluit/koprolband","m1","Nee",3.61,3.61,3.61,3.61,3.61,null,0,"Is opgeteld bij regel 13"]
["Uitvoeringskosten",null,null,null,null,null,null,"X","berm / gazon, herstel door gemeente","m2","Nee",1.85,1.85,1.85,1.85,1.85,null,{"$f":"INDEX($L$6:$P$42,,$S$3)","v":1.85}]
["Onderhoudskosten","X",null,"X","X",null,"X",null,"klinkers <= 15 m2","m2","Ja",2.16,2.44,3.27,4.9800000000000004,5.55,null,{"$f":"IF(OR($S$2=1,$S$2=3,$S$2=4,$S$2=6),INDEX($L$6:$P$42,,$S$3),0)","v":2.16}]
["Onderhoudskosten","X",null,"X","X",null,"X",null,"klinkers >15 m2","m2","Ja",1.77,1.99,2.67,4.07,4.54,null,{"$f":"IF(OR($S$2=1,$S$2=3,$S$2=4,$S$2=6),INDEX($L$6:$P$42,,$S$3),0)","v":1.77}]
["Onderhoudskosten","X",null,null,null,null,null,null,"klinkers  >100 m2 (alleen tarief A)","m2","Ja",1.57,1.77,2.38,3.62,4.03,null,{"$f":"IF($S$2=1,INDEX($L$6:$P$42,,$S$3),0)","v":1.57}]
["Onderhoudskosten","X",null,"X","X",null,"X",null,"tegels   <= 15 m2","m2","Ja",1.2,1.37,1.9,3.13,3.54,null,{"$f":"IF(OR($S$2=1,$S$2=3,$S$2=4,$S$2=6),INDEX($L$6:$P$42,,$S$3),0)","v":1.2}]
["Onderhoudskosten","X",null,"X","X",null,"X",null,"tegels   >15 m2","m2","Ja",0.92,1.06,1.47,2.41,2.73,null,{"$f":"IF(OR($S$2=1,$S$2=3,$S$2=4,$S$2=6),INDEX($L$6:$P$42,,$S$3),0)","v":0.92}]
["Onderhoudskosten","X",null,null,null,null,null,null,"tegels   >100 m2","m2","Ja",0.87,0.99,1.38,2.27,2.56,null,{"$f":"IF($S$2=1,INDEX($L$6:$P$42,,$S$3),0)","v":0.87}]
["Degeneratiekosten","X","X","X",null,null,null,null,"klinkers <= 15 m2","reparatie","Ja",7.89,11.09,20.71,31.8,38.950000000000003,null,{"$f":"IF($S$2<4,INDEX($L$6:$P$42,,$S$3),0)","v":7.89}]
["Degeneratiekosten","X","X","X",null,null,null,null,"klinkers >15 m2","m1 sleuf","Ja",2.62,3.68,6.85,13.65,15.92,null,{"$f":"IF($S$2<4,INDEX($L$6:$P$42,,$S$3),0)","v":2.62}]
["Degeneratiekosten","X",null,null,null,null,null,null,"klinkers  >100 m2 (alleen tarief A)","m1 sleuf","Ja",2.33,3.27,6.09,12.13,14.15,null,{"$f":"IF($S$2=1,INDEX($L$6:$P$42,,$S$3),0)","v":2.33}]
["Degeneratiekosten","X","X","X",null,null,null,null,"tegels   <= 15 m2","reparatie","Ja",0,0.78,3.13,9.01,10.97,null,{"$f":"IF($S$2<4,INDEX($L$6:$P$42,,$S$3),0)","v":0}]
["Degeneratiekosten","X","X","X",null,null,null,null,"tegels   >15 m2","m1 sleuf","Ja",0,0.15,0.6,7.39,9.65,null,{"$f":"IF($S$2<4,INDEX($L$6:$P$42,,$S$3),0)","v":0}]
["Degeneratiekosten","X",null,null,null,null,null,null,"tegels   >100 m2","m1 sleuf","Ja",0,0.14000000000000001,0.56999999999999995,6.95,9.07,null,{"$f":"IF($S$2=1,INDEX($L$6:$P$42,,$S$3),0)","v":0}]
["Beheerskosten","X","X","X","X","X","X",null,"klinkers <= 15 m2","m2","Nee",1.75,1.75,1.75,1.75,1.75,null,{"$f":"INDEX($L$6:$P$42,,$S$3)","v":1.75}]
["Beheerskosten","X","X","X","X","X","X",null,"klinkers >15 m2","m2","Nee",1.43,1.43,1.43,1.43,1.43,null,1.43]
["Beheerskosten","X","X","X","X","X","X",null,"klinkers  >100 m2 (alleen tarief A)","m2","Nee",1.27,1.27,1.27,1.27,1.27,null,1.27]
["Beheerskosten","X","X","X","X","X","X",null,"tegels   <= 15 m2","m2","Nee",1.39,1.39,1.39,1.39,1.39,null,1.39]
["Beheerskosten","X","X","X","X","X","X",null,"tegels   >15 m2","m2","Nee",1.07,1.07,1.07,1.07,1.07,null,1.07]
["Beheerskosten","X","X","X","X","X","X",null,"tegels   >100 m2","m2","Nee",1.01,1.01,1.01,1.01,1.01,null,1.01]
["Beheerskosten","X","X","X","X","X","X",null,"trottoirband","m1","Nee",0.65,0.65,0.65,0.65,0.65,null,0.65]
["Beheerskosten","X","X","X","X","X","X",null,"opsluit/koprolband","m1","Nee",0.52,0.52,0.52,0.52,0.52,null,0.52]
["Beheerskosten",null,null,null,null,null,null,"X","berm / gazon, herstel door gemeente","m2","Nee",0.11,0.11,0.11,0.11,0.11,null,{"$f":"INDEX($L$6:$P$42,,$S$3)","v":0.11}]
["Beheerskosten",null,null,null,null,null,null,"X","berm / gazon, herstel door gem of aanb","m2","Nee",0.11,0.11,0.11,0.11,0.11,null,0.11]
[]
["De bedragen (L6..P41) vanuit de bron: tabblad \"Tabel Tarieven\" van bestand tariefbladen-slechte-bodem-vng-JJJJ kopiëren (met plakken - waarde) naar dit tabblad (in L6..P42). Kopieer K1 naar K1 (plakken waarde)."]
[]
[]
[]
[]
[]
[]
[]
[]
[]
[]
[]
[]
[]
[]
[]
[]
[]
[]
[]
[]
[]
[]
[]
[]
[]
[]
[]
[]
[]
[]
[]
[]
[]
[]
[]
[]
[]
[]
[]
[]
[]
[]
[]
[]
[]
[]
[]
[]
[]
[]
[]
[]
[]
[]
[]
[]
[]
[]
[]
[]
[]
[]
[]
[]
[]
[]
[]
[]
[]
[]
[]
[]
[]
[]
[]
[]
[]
[]
[]
[]
[]
[]
[]
[]
[]
[]
[]
[]
[]
[]
[]
[]
[]
[]
[]
[]
[]
[]
[]
[]
[]
[]
[]
[]
[]
[]
[]
[]
[]
[]
[]
[]
[]
[]
[]
[]
[]
[]
[]
[]
[]
[]
[]
[]
[]
[]
[]
[]
[]
[]
[]
[]
[]
[]
[]
[]
[]
[]
[]
[]
[]
[]
[]
[]
[]
[]
[]
[]
[]
[]
[]
[]
[]
[]
[]
[]
[]
[]
[]
[]
[]
[]
[]
[]
[]
[]
[]
[]
[]
[]
[]
[]
[]
[]
[]
[]
[]
[]
[]
[]
[]
[]
[]
[]
[]
[]
[]
[]
[]
[]
[]
[]
[]
[]
[]
[]
[]
[]
[]
[]
[]
[]
[]
[]
[]
[]
[]
[]
[]
[]
[]
[]
[]
[]
[]
[]
[]
[]
[]
[]
[]
[]
[]
[]
[]
[]
[]
[]
[]
[]
[]
[]
[]
[]
[]
[]
[]
[]
[]
[]
[]
[]
[]
[]
[]
[]
[]
[]
[]
[]
[]
[]
[]
[]
[]
[]
[]
[]
[]
[]
[]
[]
[]
[]
[]
[]
[]
[]
[]
[]
[]
[]
[]
[]
[]
[]
[]
[]
[]
[]
[]
[]
[]
[]
[]
[]
[]
[]
[]
[]
[]
[]
[]
[]
[]
[]
[]
[]
[]
[]
[]
[]
[]
[]
[]
[]
[]
[]
[]
[]
[]
[]
[]
[]
[]
[]
[]
[]
[]
[]
[]
[]
[]
[]
[]
[]
[]
[]
[]
[]
[]
[]
[]
[]
[]
[]
[]
[]
[]
[]
[]
[]
[]
[]
[]
[]
[]
[]
[]
[]
[]
[]
[]
[]
[]
[]
[]
[]
[]
[]
[]
[]
[]
[]
[]
[]
[]
[]
[]
[]
[]
[]
[]
[]
[]
[]
[]
[]
[]
[]
[]
[]
[]
[]
[]
[]
[]
[]
[]
[]
[]
[]
[]
[]
[]
[]
[]
[]
[]
[]
[]
[]
[]
[]
[]
[]
[]
[]
[]
[]
[]
[]
[]
[]
[]
[]
[]
[]
[]
[]
[]
[]
[]
[]
[]
[]
[]
[]
[]
[]
[]
[]
[]
[]
[]
[]
[]
[]
[]
[]
[]
[]
[]
[]
[]
[]
[]
[]
[]
[]
[]
[]
[]
[]
[]
[]
[]
[]
[]
[]
[]
[]
[]
[]
[]
[]
[]
[]
[]
[]
[]
[]
[]
[]
[null,null,null,null,null,null,null,null,null,null,null,null,null,null,null,null,2.14,7.81,0,1.74]
[null,null,null,null,null,null,null,null,null,null,null,null,null,null,null,null,1.75,0,2.59,1.42]
[null,null,null,null,null,null,null,null,null,null,null,null,null,null,null,null,1.55,0,2.2999999999999998,1.26]
[null,null,null,null,null,null,null,null,null,null,null,null,null,null,null,null,1.18,0,0,1.37]
[null,null,null,null,null,null,null,null,null,null,null,null,null,null,null,null,0.91,0,0,1.06]
[null,null,null,null,null,null,null,null,null,null,null,null,null,null,null,null,0.85,0,0,0.99]
[null,null,null,null,null,null,null,null,null,null,null,null,null,null,null,null,null,null,null,0.65]
[null,null,null,null,null,null,null,null,null,null,null,null,null,null,null,null,null,null,null,0.51]
[null,null,null,null,null,null,null,null,null,null,null,null,null,null,null,null,null,7.81,0,1.74]
[null,null,null,null,null,null,null,null,null,null,null,null,null,null,null,null,null,0,2.59,1.42]
[null,null,null,null,null,null,null,null,null,null,null,null,null,null,null,null,null,0,0,1.37]
[null,null,null,null,null,null,null,null,null,null,null,null,null,null,null,null,null,0,0,1.06]
[null,null,null,null,null,null,null,null,null,null,null,null,null,null,null,null,null,null,null,0.65]
[null,null,null,null,null,null,null,null,null,null,null,null,null,null,null,null,null,null,null,0.51]
[null,null,null,null,null,null,null,null,null,null,null,null,null,null,null,null,2.14,7.81,0,1.74]
[null,null,null,null,null,null,null,null,null,null,null,null,null,null,null,null,1.75,0,2.59,1.42]
[null,null,null,null,null,null,null,null,null,null,null,null,null,null,null,null,1.18,0,0,1.37]
[null,null,null,null,null,null,null,null,null,null,null,null,null,null,null,null,0.91,0,0,1.06]
[null,null,null,null,null,null,null,null,null,null,null,null,null,null,null,null,null,null,null,0.65]
[null,null,null,null,null,null,null,null,null,null,null,null,null,null,null,null,null,null,null,0.51]
[null,null,null,null,null,null,null,null,null,null,null,null,null,null,null,null,2.14,null,null,1.74]
[null,null,null,null,null,null,null,null,null,null,null,null,null,null,null,null,1.75,null,null,1.42]
[null,null,null,null,null,null,null,null,null,null,null,null,null,null,null,null,1.18,null,null,1.37]
[null,null,null,null,null,null,null,null,null,null,null,null,null,null,null,null,0.91,null,null,1.06]
[null,null,null,null,null,null,null,null,null,null,null,null,null,null,null,null,null,null,null,0.65]
[null,null,null,null,null,null,null,null,null,null,null,null,null,null,null,null,null,null,null,0.51]
[null,null,null,null,null,null,null,null,null,null,null,null,null,null,null,null,null,null,null,1.74]
[null,null,null,null,null,null,null,null,null,null,null,null,null,null,null,null,null,null,null,1.42]
[null,null,null,null,null,null,null,null,null,null,null,null,null,null,null,null,null,null,null,1.37]
[null,null,null,null,null,null,null,null,null,null,null,null,null,null,null,null,null,null,null,1.06]
[null,null,null,null,null,null,null,null,null,null,null,null,null,null,null,null,null,null,null,0.65]
[null,null,null,null,null,null,null,null,null,null,null,null,null,null,null,null,null,null,null,0.51]
[null,null,null,null,null,null,null,null,null,null,null,null,null,null,null,null,2.14,null,null,1.74]
[null,null,null,null,null,null,null,null,null,null,null,null,null,null,null,null,1.75,null,null,1.42]
[null,null,null,null,null,null,null,null,null,null,null,null,null,null,null,null,1.18,null,null,1.37]
[null,null,null,null,null,null,null,null,null,null,null,null,null,null,null,null,0.91,null,null,1.06]
[null,null,null,null,null,null,null,null,null,null,null,null,null,null,null,null,null,null,null,0.65]
[null,null,null,null,null,null,null,null,null,null,null,null,null,null,null,null,null,null,null,0.51]
[null,null,null,null,null,null,null,null,null,null,null,null,null,null,null,null,null,null,null,0.11]
[null,null,null,null,null,null,null,null,null,null,null,null,null,null,null,null,null,null,null,0.11]
[null,null,null,null,null,null,null,null,null,null,null,null,null,null,null,null,2.41,10.98,0,1.74]
[null,null,null,null,null,null,null,null,null,null,null,null,null,null,null,null,1.97,0,3.64,1.42]
[null,null,null,null,null,null,null,null,null,null,null,null,null,null,null,null,1.75,0,3.24,1.26]
[null,null,null,null,null,null,null,null,null,null,null,null,null,null,null,null,1.35,0.77,0,1.37]
[null,null,null,null,null,null,null,null,null,null,null,null,null,null,null,null,1.04,0,0.15,1.06]
[null,null,null,null,null,null,null,null,null,null,null,null,null,null,null,null,0.98,0,0.14000000000000001,0.99]
[null,null,null,null,null,null,null,null,null,null,null,null,null,null,null,null,null,10.98,0,1.74]
[null,null,null,null,null,null,null,null,null,null,null,null,null,null,null,null,null,0,3.64,1.42]
[null,null,null,null,null,null,null,null,null,null,null,null,null,null,null,null,null,0.77,0,1.37]
[null,null,null,null,null,null,null,null,null,null,null,null,null,null,null,null,null,0,0.15,1.06]
[null,null,null,null,null,null,null,null,null,null,null,null,null,null,null,null,2.41,10.98,0,1.74]
[null,null,null,null,null,null,null,null,null,null,null,null,null,null,null,null,1.97,0,3.64,1.42]
[null,null,null,null,null,null,null,null,null,null,null,null,null,null,null,null,1.35,0.77,0,1.37]
[null,null,null,null,null,null,null,null,null,null,null,null,null,null,null,null,1.04,0,0.15,1.06]
[null,null,null,null,null,null,null,null,null,null,null,null,null,null,null,null,2.41,null,null,1.74]
[null,null,null,null,null,null,null,null,null,null,null,null,null,null,null,null,1.97,null,null,1.42]
[null,null,null,null,null,null,null,null,null,null,null,null,null,null,null,null,1.35,null,null,1.37]
[null,null,null,null,null,null,null,null,null,null,null,null,null,null,null,null,1.04,null,null,1.06]
[null,null,null,null,null,null,null,null,null,null,null,null,null,null,null,null,null,null,null,1.74]
[null,null,null,null,null,null,null,null,null,null,null,null,null,null,null,null,null,null,null,1.42]
[null,null,null,null,null,null,null,null,null,null,null,null,null,null,null,null,null,null,null,1.37]
[null,null,null,null,null,null,null,null,null,null,null,null,null,null,null,null,null,null,null,1.06]
[null,null,null,null,null,null,null,null,null,null,null,null,null,null,null,null,2.41,null,null,1.74]
[null,null,null,null,null,null,null,null,null,null,null,null,null,null,null,null,1.97,null,null,1.42]
[null,null,null,null,null,null,null,null,null,null,null,null,null,null,null,null,1.35,null,null,1.37]
[null,null,null,null,null,null,null,null,null,null,null,null,null,null,null,null,1.04,null,null,1.06]
[null,null,null,null,null,null,null,null,null,null,null,null,null,null,null,null,3.24,20.5,0,1.74]
[null,null,null,null,null,null,null,null,null,null,null,null,null,null,null,null,2.65,0,6.79,1.42]
[null,null,null,null,null,null,null,null,null,null,null,null,null,null,null,null,2.35,0,6.03,1.26]
[null,null,null,null,null,null,null,null,null,null,null,null,null,null,null,null,1.88,3.09,0,1.37]
[null,null,null,null,null,null,null,null,null,null,null,null,null,null,null,null,1.45,0,0.6,1.06]
[null,null,null,null,null,null,null,null,null,null,null,null,null,null,null,null,1.36,0,0.56000000000000005,0.99]
[null,null,null,null,null,null,null,null,null,null,null,null,null,null,null,null,null,20.5,0,1.74]
[null,null,null,null,null,null,null,null,null,null,null,null,null,null,null,null,null,0,6.79,1.42]
[null,null,null,null,null,null,null,null,null,null,null,null,null,null,null,null,null,3.09,0,1.37]
[null,null,null,null,null,null,null,null,null,null,null,null,null,null,null,null,null,0,0.6,1.06]
[null,null,null,null,null,null,null,null,null,null,null,null,null,null,null,null,3.24,20.5,0,1.74]
[null,null,null,null,null,null,null,null,null,null,null,null,null,null,null,null,2.65,0,6.79,1.42]
[null,null,null,null,null,null,null,null,null,null,null,null,null,null,null,null,1.88,3.09,0,1.37]
[null,null,null,null,null,null,null,null,null,null,null,null,null,null,null,null,1.45,0,0.6,1.06]
[null,null,null,null,null,null,null,null,null,null,null,null,null,null,null,null,3.24,null,null,1.74]
[null,null,null,null,null,null,null,null,null,null,null,null,null,null,null,null,2.65,null,null,1.42]
[null,null,null,null,null,null,null,null,null,null,null,null,null,null,null,null,1.88,null,null,1.37]
[null,null,null,null,null,null,null,null,null,null,null,null,null,null,null,null,1.45,null,null,1.06]
[null,null,null,null,null,null,null,null,null,null,null,null,null,null,null,null,null,null,null,1.74]
[null,null,null,null,null,null,null,null,null,null,null,null,null,null,null,null,null,null,null,1.42]
[null,null,null,null,null,null,null,null,null,null,null,null,null,null,null,null,null,null,null,1.37]
[null,null,null,null,null,null,null,null,null,null,null,null,null,null,null,null,null,null,null,1.06]
[null,null,null,null,null,null,null,null,null,null,null,null,null,null,null,null,3.24,null,null,1.74]
[null,null,null,null,null,null,null,null,null,null,null,null,null,null,null,null,2.65,null,null,1.42]
[null,null,null,null,null,null,null,null,null,null,null,null,null,null,null,null,1.88,null,null,1.37]
[null,null,null,null,null,null,null,null,null,null,null,null,null,null,null,null,1.45,null,null,1.06]
[null,null,null,null,null,null,null,null,null,null,null,null,null,null,null,null,4.93,31.48,0,1.74]
[null,null,null,null,null,null,null,null,null,null,null,null,null,null,null,null,4.03,0,13.52,1.42]
[null,null,null,null,null,null,null,null,null,null,null,null,null,null,null,null,3.58,0,12.01,1.26]
[null,null,null,null,null,null,null,null,null,null,null,null,null,null,null,null,3.09,8.89,0,1.37]
[null,null,null,null,null,null,null,null,null,null,null,null,null,null,null,null,2.38,"-,--",7.29,1.06]
[null,null,null,null,null,null,null,null,null,null,null,null,null,null,null,null,2.2400000000000002,0,6.86,0.99]
[null,null,null,null,null,null,null,null,null,null,null,null,null,null,null,null,null,31.48,0,1.74]
[null,null,null,null,null,null,null,null,null,null,null,null,null,null,null,null,null,0,13.52,1.42]
[null,null,null,null,null,null,null,null,null,null,null,null,null,null,null,null,null,8.89,0,1.37]
[null,null,null,null,null,null,null,null,null,null,null,null,null,null,null,null,null,"-,--",7.29,1.06]
[null,null,null,null,null,null,null,null,null,null,null,null,null,null,null,null,4.93,31.48,0,1.74]
[null,null,null,null,null,null,null,null,null,null,null,null,null,null,null,null,4.03,0,13.52,1.42]
[null,null,null,null,null,null,null,null,null,null,null,null,null,null,null,null,3.09,8.89,0,1.37]
[null,null,null,null,null,null,null,null,null,null,null,null,null,null,null,null,2.38,"-,--",7.29,1.06]
[null,null,null,null,null,null,null,null,null,null,null,null,null,null,null,null,4.93,null,null,1.74]
[null,null,null,null,null,null,null,null,null,null,null,null,null,null,null,null,4.03,null,null,1.42]
[null,null,null,null,null,null,null,null,null,null,null,null,null,null,null,null,3.09,null,null,1.37]
[null,null,null,null,null,null,null,null,null,null,null,null,null,null,null,null,2.38,null,null,1.06]
[null,null,null,null,null,null,null,null,null,null,null,null,null,null,null,null,null,null,null,1.74]
[null,null,null,null,null,null,null,null,null,null,null,null,null,null,null,null,null,null,null,1.42]
[null,null,null,null,null,null,null,null,null,null,null,null,null,null,null,null,null,null,null,1.37]
[null,null,null,null,null,null,null,null,null,null,null,null,null,null,null,null,null,null,null,1.06]
[null,null,null,null,null,null,null,null,null,null,null,null,null,null,null,null,4.93,null,null,1.74]
[null,null,null,null,null,null,null,null,null,null,null,null,null,null,null,null,4.03,null,null,1.42]
[null,null,null,null,null,null,null,null,null,null,null,null,null,null,null,null,3.09,null,null,1.37]
[null,null,null,null,null,null,null,null,null,null,null,null,null,null,null,null,2.38,null,null,1.06]
[null,null,null,null,null,null,null,null,null,null,null,null,null,null,null,null,5.49,38.56,0,1.74]
[null,null,null,null,null,null,null,null,null,null,null,null,null,null,null,null,4.49,0,15.77,1.42]
[null,null,null,null,null,null,null,null,null,null,null,null,null,null,null,null,3.99,0,14.01,1.26]
[null,null,null,null,null,null,null,null,null,null,null,null,null,null,null,null,3.49,10.83,0,1.37]
[null,null,null,null,null,null,null,null,null,null,null,null,null,null,null,null,2.69,0,9.5299999999999994,1.06]
[null,null,null,null,null,null,null,null,null,null,null,null,null,null,null,null,2.5299999999999998,0,8.9499999999999993,0.99]
[null,null,null,null,null,null,null,null,null,null,null,null,null,null,null,null,null,38.56,0,1.74]
[null,null,null,null,null,null,null,null,null,null,null,null,null,null,null,null,null,0,15.77,1.42]
[null,null,null,null,null,null,null,null,null,null,null,null,null,null,null,null,null,10.83,0,1.37]
[null,null,null,null,null,null,null,null,null,null,null,null,null,null,null,null,null,0,9.5299999999999994,1.06]
[null,null,null,null,null,null,null,null,null,null,null,null,null,null,null,null,5.49,38.56,0,1.74]
[null,null,null,null,null,null,null,null,null,null,null,null,null,null,null,null,4.49,0,15.77,1.42]
[null,null,null,null,null,null,null,null,null,null,null,null,null,null,null,null,3.49,10.83,0,1.37]
[null,null,null,null,null,null,null,null,null,null,null,null,null,null,null,null,2.69,0,9.5299999999999994,1.06]
[null,null,null,null,null,null,null,null,null,null,null,null,null,null,null,null,5.49,null,null,1.74]
[null,null,null,null,null,null,null,null,null,null,null,null,null,null,null,null,4.49,null,null,1.42]
[null,null,null,null,null,null,null,null,null,null,null,null,null,null,null,null,3.49,null,null,1.37]
[null,null,null,null,null,null,null,null,null,null,null,null,null,null,null,null,2.69,null,null,1.06]
[null,null,null,null,null,null,null,null,null,null,null,null,null,null,null,null,null,null,null,1.74]
[null,null,null,null,null,null,null,null,null,null,null,null,null,null,null,null,null,null,null,1.42]
[null,null,null,null,null,null,null,null,null,null,null,null,null,null,null,null,null,null,null,1.37]
[null,null,null,null,null,null,null,null,null,null,null,null,null,null,null,null,null,null,null,1.06]
[null,null,null,null,null,null,null,null,null,null,null,null,null,null,null,null,5.49,null,null,1.74]
[null,null,null,null,null,null,null,null,null,null,null,null,null,null,null,null,4.49,null,null,1.42]
[null,null,null,null,null,null,null,null,null,null,null,null,null,null,null,null,3.49,null,null,1.37]
[null,null,null,null,null,null,null,null,null,null,null,null,null,null,null,null,2.69,null,null,1.06]